fUSD/lending_fUSD_20251003
["ID","MTS","AMOUNT","RATE_DAILY","PERIOD"]
[388902226,1759485057140,-9133.380707,0.00016999,2]
[388902227,1759485057150,-151.0,0.00016999,2]
[388902228,1759485057159,-151.0,0.00016999,2]
[388902229,1759485057170,-9133.380707,0.00016999,2]
[388902230,1759485057180,-151.0,0.00016999,2]
[388902231,1759485057190,-151.0,0.00016999,2]
[388902232,1759485057200,-9133.380707,0.00016999,2]
[388902233,1759485057210,-210.755775,0.00016999,2]
[388902234,1759485057220,-151.0,0.00016999,2]
[388902235,1759485057230,-9133.380707,0.00016999,2]
[388902236,1759485057240,-151.0,0.00016999,2]
[388902237,1759485057251,-152.808454,0.00016999,2]
[388902238,1759485057261,-9133.380713,0.00016999,2]
[388902239,1759485057271,-151.0,0.00016999,2]
[388902240,1759485057281,-151.0,0.00016999,2]
[388902241,1759485057290,-151.0,0.00016999,2]
[388902242,1759485057300,-151.0,0.00016999,2]
[388902243,1759485057311,-208.213515,0.00016999,2]
[388902244,1759485057322,-151.0,0.00016999,2]
[388902245,1759485057332,-151.0,0.00016999,2]
[388902246,1759485057344,-151.0,0.00016999,2]
[388902247,1759485057354,-151.0,0.00016999,2]
[388902248,1759485057364,-151.0,0.00016999,2]
[388902249,1759485057374,-151.0,0.00016999,2]
[388902250,1759485057383,-151.0,0.00016999,2]
[388902251,1759485057393,-151.0,0.00016999,2]
[388902252,1759485057402,-151.0,0.00016999,2]
[388902253,1759485057414,-151.0,0.00016999,2]
[388902254,1759485057423,-151.0,0.00016999,2]
[388902255,1759485057434,-151.0,0.00016999,2]
[388902256,1759485057443,-229.203246,0.00016999,2]
[388902257,1759485057453,-151.0,0.00016999,2]
[388902258,1759485057462,-229.203246,0.00016999,2]
[388902259,1759485057472,-165.30209601,0.00016999,2]
[388902260,1759485057482,-229.203246,0.00016999,2]
[388902261,1759485057496,-229.203246,0.00016999,2]
[388902262,1759485057507,-229.203246,0.00016999,2]
[388902263,1759485057517,-229.203246,0.00016999,2]
[388902264,1759485057530,-229.203246,0.00016999,2]
[388902265,1759485057540,-229.203246,0.00016999,2]
[388902266,1759485057551,-229.203246,0.00016999,2]
[388902267,1759485057561,-229.203246,0.00016999,2]
[388902268,1759485057573,-333.773798,0.00016999,2]
[388902269,1759485057583,-229.203246,0.00016999,2]
[388902270,1759485057593,-333.773798,0.00016999,2]
[388902271,1759485057603,-229.203246,0.00016999,2]
[388902272,1759485057613,-333.773798,0.00016999,2]
[388902273,1759485057622,-229.203246,0.00016999,2]
[388902274,1759485057632,-229.203246,0.00016999,2]
[388902275,1759485057642,-229.203246,0.00016999,2]
[388902276,1759485057651,-229.203246,0.00016999,2]
[388902277,1759485057661,-229.203246,0.00016999,2]
[388902278,1759485057670,-333.773798,0.00016999,2]
[388902279,1759485057680,-229.203246,0.00016999,2]
[388902280,1759485057690,-151.0,0.00016999,2]
[388902281,1759485057700,-333.773798,0.00016999,2]
[388902282,1759485057709,-229.203246,0.00016999,2]
[388902283,1759485057720,-261.109,0.00016999,2]
[388902284,1759485057729,-333.773798,0.00016999,2]
[388902285,1759485057739,-229.20324,0.00016999,2]
[388902286,1759485057748,-333.773798,0.00016999,2]
[388902287,1759485057758,-333.773798,0.00016999,2]
[388902288,1759485057768,-333.773798,0.00016999,2]
[388902289,1759485057778,-333.773798,0.00016999,2]
[388902290,1759485057787,-333.773798,0.00016999,2]
[388902291,1759485057798,-333.773798,0.00016999,2]
[388902292,1759485057807,-333.773798,0.00016999,2]
[388902293,1759485057817,-333.773798,0.00016999,2]
[388902294,1759485057827,-333.773798,0.00016999,2]
[388902295,1759485057837,-333.773798,0.00016999,2]
[388902296,1759485057847,-333.773798,0.00016999,2]
[388902297,1759485057857,-333.773798,0.00016999,2]
[388902298,1759485057867,-333.773798,0.00016999,2]
[388902299,1759485057876,-333.773806,0.00016999,2]
[388902300,1759485057886,-151.0,0.00016999,2]
[388902301,1759485057896,-151.0,0.00016999,2]
[388902302,1759485057905,-151.0,0.00016999,2]
[388902303,1759485057915,-151.0,0.00016999,2]
[388902304,1759485057925,-151.0,0.00016999,2]
[388902305,1759485057935,-3409.658062,0.00016999,2]
[388902306,1759485057944,-153.065776,0.00016999,2]
[388902307,1759485057954,-3409.658062,0.00016999,2]
[388902308,1759485057964,-151.0,0.00016999,2]
[388902309,1759485057974,-3409.658062,0.00016999,2]
[388902310,1759485057984,-151.0,0.00016999,2]
[388902311,1759485057993,-3409.658062,0.00016999,2]
[388902312,1759485058003,-3409.658062,0.00016999,2]
[388902313,1759485058013,-3409.658062,0.00016999,2]
[388902314,1759485058022,-151.0,0.00016999,2]
[388902315,1759485058033,-3409.658062,0.00016999,2]
[388902316,1759485058043,-3409.658062,0.00016999,2]
[388902317,1759485058052,-151.0,0.00016999,2]
[388902318,1759485058062,-151.0,0.00016999,2]
[388902319,1759485058072,-3409.658062,0.00016999,2]
[388902320,1759485058082,-151.0,0.00016999,2]
[388902321,1759485058094,-3409.658062,0.00016999,2]
[388902322,1759485058104,-151.0,0.00016999,2]
[388902323,1759485058114,-3409.658062,0.00016999,2]
[388902324,1759485058124,-290.772476,0.00016999,2]
[388902325,1759485058134,-3409.658062,0.00016999,2]
[388902326,1759485058144,-151.0,0.00016999,2]
[388902327,1759485058154,-3409.658062,0.00016999,2]
[388902328,1759485058170,-151.0,0.00016999,2]
[388902329,1759485058180,-151.0,0.00016999,2]
[388902330,1759485058190,-3409.658062,0.00016999,2]
[388902331,1759485058201,-151.0,0.00016999,2]
[388902332,1759485058211,-3409.658062,0.00016999,2]
[388902333,1759485058221,-151.0,0.00016999,2]
[388902334,1759485058231,-3409.658062,0.00016999,2]
[388902335,1759485058241,-151.0,0.00016999,2]
[388902336,1759485058251,-3409.658062,0.00016999,2]
[388902337,1759485058639,-151.0,0.00016999,2]
[388902338,1759485058678,-3409.658062,0.00016999,2]
[388902339,1759485058688,-151.0,0.00016999,2]
[388902340,1759485058698,-3409.658062,0.00016999,2]
[388902341,1759485058708,-3409.658057,0.00016999,2]
[388902342,1759485058717,-151.0,0.00016999,2]
[388902343,1759485058727,-155.022111,0.00016999,2]
[388902344,1759485058737,-151.0,0.00016999,2]
[388902345,1759485058746,-151.0,0.00016999,2]
[388902346,1759485058755,-151.0,0.00016999,2]
[388902347,1759485058766,-151.0,0.00016999,2]
[388902348,1759485058777,-151.0,0.00016999,2]
[388902349,1759485058786,-171.605567,0.00016999,2]
[388902350,1759485058796,-171.605567,0.00016999,2]
[388902351,1759485058805,-171.605567,0.00016999,2]
[388902352,1759485058816,-171.605567,0.00016999,2]
[388902353,1759485058825,-171.605567,0.00016999,2]
[388902354,1759485058835,-151.0,0.00016999,2]
[388902355,1759485058845,-171.605567,0.00016999,2]
[388902356,1759485058855,-151.0,0.00016999,2]
[388902357,1759485058866,-151.0,0.00016999,2]
[388902358,1759485058876,-171.605567,0.00016999,2]
[388902359,1759485058886,-151.0,0.00016999,2]
[388902360,1759485058896,-151.0,0.00016999,2]
[388902361,1759485058911,-151.0,0.00016999,2]
[388902362,1759485058921,-151.0,0.00016999,2]
[388902363,1759485058932,-171.605567,0.00016999,2]
[388902364,1759485058942,-151.0,0.00016999,2]
[388902365,1759485058952,-180.480854,0.00016999,2]
[388902366,1759485058962,-151.0,0.00016999,2]
[388902367,1759485058972,-171.605567,0.00016999,2]
[388902368,1759485058982,-151.0,0.00016999,2]
[388902369,1759485058993,-171.605567,0.00016999,2]
[388902370,1759485059003,-180.480854,0.00016999,2]
[388902371,1759485059014,-151.0,0.00016999,2]
[388902372,1759485059024,-171.605567,0.00016999,2]
[388902373,1759485059035,-180.480854,0.00016999,2]
[388902374,1759485059045,-164.427467,0.00016999,2]
[388902375,1759485059058,-151.0,0.00016999,2]
[388902376,1759485059070,-171.605567,0.00016999,2]
[388902377,1759485059085,-180.480854,0.00016999,2]
[388902378,1759485059095,-164.427467,0.00016999,2]
[388902379,1759485059106,-171.605567,0.00016999,2]
[388902380,1759485059116,-180.480854,0.00016999,2]
[388902381,1759485059126,-164.427467,0.00016999,2]
[388902382,1759485059137,-171.605567,0.00016999,2]
[388902383,1759485059147,-180.480854,0.00016999,2]
[388902384,1759485059157,-164.427467,0.00016999,2]
[388902385,1759485059167,-171.605567,0.00016999,2]
[388902386,1759485059177,-180.480854,0.00016999,2]
[388902387,1759485059187,-164.427467,0.00016999,2]
[388902388,1759485059198,-171.605567,0.00016999,2]
[388902389,1759485059209,-164.427467,0.00016999,2]
[388902390,1759485059219,-180.480854,0.00016999,2]
[388902391,1759485059229,-171.605567,0.00016999,2]
[388902392,1759485059239,-164.427467,0.00016999,2]
[388902393,1759485059250,-180.480854,0.00016999,2]
[388902394,1759485059260,-171.605567,0.00016999,2]
[388902395,1759485059274,-164.427467,0.00016999,2]
[388902396,1759485059284,-180.480854,0.00016999,2]
[388902397,1759485059299,-171.605567,0.00016999,2]
[388902398,1759485059310,-180.480854,0.00016999,2]
[388902399,1759485059320,-171.605559,0.00016999,2]
[388902400,1759485059330,-164.427467,0.00016999,2]
[388902401,1759485059341,-180.480854,0.00016999,2]
[388902402,1759485059355,-164.427467,0.00016999,2]
[388902403,1759485059367,-151.0,0.00016999,2]
[388902404,1759485059377,-180.480854,0.00016999,2]
[388902405,1759485059387,-164.427467,0.00016999,2]
[388902406,1759485059398,-151.0,0.00016999,2]
[388902407,1759485059408,-180.480854,0.00016999,2]
[388902408,1759485059418,-164.427467,0.00016999,2]
[388902409,1759485059429,-151.0,0.00016999,2]
[388902410,1759485059440,-180.480854,0.00016999,2]
[388902411,1759485059450,-164.427467,0.00016999,2]
[388902412,1759485059460,-151.0,0.00016999,2]
[388902413,1759485059471,-180.480854,0.00016999,2]
[388902414,1759485059481,-164.427467,0.00016999,2]
[388902415,1759485059494,-151.0,0.00016999,2]
[388902416,1759485059504,-180.480854,0.00016999,2]
[388902417,1759485059512,-151.0,0.00016999,2]
[388902418,1759485059521,-164.427467,0.00016999,2]
[388902419,1759485059531,-180.480854,0.00016999,2]
[388902420,1759485059541,-151.0,0.00016999,2]
[388902421,1759485059550,-164.427467,0.00016999,2]
[388902422,1759485059561,-180.480854,0.00016999,2]
[388902423,1759485059571,-164.427467,0.00016999,2]
[388902424,1759485059582,-151.0,0.00016999,2]
[388902425,1759485059592,-180.480862,0.00016999,2]
[388902426,1759485059603,-164.427467,0.00016999,2]
[388902427,1759485059612,-151.0,0.00016999,2]
[388902428,1759485059623,-164.427467,0.00016999,2]
[388902429,1759485059632,-151.0,0.00016999,2]
[388902430,1759485059642,-164.427463,0.00016999,2]
[388902431,1759485059652,-206.015144,0.00016999,2]
[388902432,1759485059662,-151.0,0.00016999,2]
[388902433,1759485059672,-151.0,0.00016999,2]
[388902434,1759485059682,-151.0,0.00016999,2]
[388902435,1759485059691,-151.0,0.00016999,2]
[388902436,1759485059705,-284.199118,0.00016999,2]
[388902437,1759485059716,-151.0,0.00016999,2]
[388902438,1759485059727,-151.0,0.00016999,2]
[388902439,1759485059737,-151.0,0.00016999,2]
[388902440,1759485059747,-151.0,0.00016999,2]
[388902441,1759485059758,-151.0,0.00016999,2]
[388902442,1759485059769,-151.0,0.00016999,2]
[388902443,1759485059779,-151.0,0.00016999,2]
[388902444,1759485059789,-151.0,0.00016999,2]
[388902445,1759485059800,-151.0,0.00016999,2]
[388902446,1759485059810,-151.0,0.00016999,2]
[388902447,1759485059820,-151.0,0.00016999,2]
[388902448,1759485059830,-151.0,0.00016999,2]
[388902449,1759485059840,-151.0,0.00016999,2]
[388902450,1759485059850,-151.0,0.00016999,2]
[388902451,1759485059860,-151.0,0.00016999,2]
[388902452,1759485059870,-151.0,0.00016999,2]
[388902453,1759485059880,-151.0,0.00016999,2]
[388902454,1759485059890,-151.0,0.00016999,2]
[388902455,1759485059900,-180.93484,0.00016999,2]
[388902456,1759485059910,-450.047967,0.00016999,2]
[388902457,1759485059920,-450.047967,0.00016999,2]
[388902458,1759485059929,-450.047967,0.00016999,2]
[388902459,1759485059939,-450.047967,0.00016999,2]
[388902460,1759485059949,-450.047967,0.00016999,2]
[388902461,1759485059959,-450.047967,0.00016999,2]
[388902462,1759485059969,-450.047967,0.00016999,2]
[388902463,1759485059980,-450.047967,0.00016999,2]
[388902464,1759485059990,-450.047967,0.00016999,2]
[388902465,1759485060000,-450.047967,0.00016999,2]
[388902466,1759485060010,-450.047967,0.00016999,2]
[388902467,1759485060020,-450.047967,0.00016999,2]
[388902468,1759485060030,-450.047967,0.00016999,2]
[388902469,1759485060040,-450.047967,0.00016999,2]
[388902470,1759485060050,-450.047967,0.00016999,2]
[388902471,1759485060060,-1922.285483,0.00016999,2]
[388902472,1759485060070,-450.047967,0.00016999,2]
[388902473,1759485060080,-1922.285483,0.00016999,2]
[388902474,1759485060093,-1922.285483,0.00016999,2]
[388902475,1759485060103,-450.047967,0.00016999,2]
[388902476,1759485060114,-1922.285483,0.00016999,2]
[388902477,1759485060124,-450.047967,0.00016999,2]
[388902478,1759485060134,-450.047967,0.00016999,2]
[388902479,1759485060144,-1922.285483,0.00016999,2]
[388902480,1759485060154,-450.047968,0.00016999,2]
[388902481,1759485060164,-1922.285483,0.00016999,2]
[388902482,1759485060175,-1922.285483,0.00016999,2]
[388902483,1759485060185,-1922.285483,0.00016999,2]
[388902484,1759485060196,-1922.285483,0.00016999,2]
[388902485,1759485060207,-1922.285483,0.00016999,2]
[388902486,1759485060217,-1922.285483,0.00016999,2]
[388902487,1759485060228,-1922.285483,0.00016999,2]
[388902488,1759485060238,-1922.285483,0.00016999,2]
[388902489,1759485060248,-1922.285483,0.00016999,2]
[388902490,1759485060259,-151.0,0.00016999,2]
[388902491,1759485060269,-297.448522,0.00016999,2]
[388902492,1759485060279,-1922.285483,0.00016999,2]
[388902493,1759485060289,-151.0,0.00016999,2]
[388902494,1759485060301,-1922.285483,0.00016999,2]
[388902495,1759485060311,-190.770605,0.00016999,2]
[388902496,1759485060326,-1922.285483,0.00016999,2]
[388902497,1759485060335,-1922.285483,0.00016999,2]
[388902498,1759485060345,-1922.285483,0.00016999,2]
[388902499,1759485060355,-1922.285485,0.00016999,2]
[388902500,1759485060365,-151.0,0.00016999,2]
[388902501,1759485060375,-151.0,0.00016999,2]
[388902502,1759485060385,-151.0,0.00016999,2]
[388902503,1759485060395,-151.0,0.00016999,2]
[388902504,1759485060405,-201.162528,0.00016999,2]
[388902505,1759485060415,-151.0,0.00016999,2]
[388902506,1759485060425,-151.0,0.00016999,2]
[388902507,1759485060435,-151.0,0.00016999,2]
[388902508,1759485060448,-151.0,0.00016999,2]
[388902509,1759485060459,-151.0,0.00016999,2]
[388902510,1759485060468,-152.99754766,0.00016999,2]
[388902511,1759485060480,-151.0,0.00016999,2]
[388902512,1759485060495,-181.731641,0.00016999,2]
[388902513,1759485060507,-205.44804719,0.00016999,2]
[388902514,1759485060518,-418.197267,0.00016999,2]
[388902515,1759485060530,-418.197267,0.00016999,2]
[388902516,1759485060540,-418.197267,0.00016999,2]
[388902517,1759485060551,-418.197267,0.00016999,2]
[388902518,1759485060563,-418.197267,0.00016999,2]
[388902519,1759485060573,-418.197267,0.00016999,2]
[388902520,1759485060584,-418.197267,0.00016999,2]
[388902521,1759485060593,-418.197267,0.00016999,2]
[388902522,1759485060603,-418.197267,0.00016999,2]
[388902523,1759485060614,-418.197267,0.00016999,2]
[388902524,1759485060626,-151.0,0.00016999,2]
[388902525,1759485060637,-418.197267,0.00016999,2]
[388902526,1759485060649,-418.197267,0.00016999,2]
[388902527,1759485060659,-418.197267,0.00016999,2]
[388902528,1759485060669,-418.197267,0.00016999,2]
[388902529,1759485060679,-418.197267,0.00016999,2]
[388902530,1759485060690,-418.197267,0.00016999,2]
[388902531,1759485060701,-418.197267,0.00016999,2]
[388902532,1759485060713,-418.197267,0.00016999,2]
[388902533,1759485060724,-309212.61399652,0.00017,2]
[388902534,1759485060734,-50773.57748625,0.00017,2]
[388902535,1759485061818,-6400.34999999,0.00017,2]
[388902536,1759485062642,-418.197267,0.00016999,2]
[388902537,1759485062650,-418.19727226,0.00016999,2]
[388902538,1759485062659,-151.0,0.00016999,2]
[388902539,1759485062668,-151.0,0.00016999,2]
[388902540,1759485062679,-151.0,0.00016999,2]
[388902541,1759485062688,-2574.20102103,0.00017,2]
[388902542,1759485062724,-13224.22888145,0.00017,2]
[388902543,1759485062745,-131957.95151678,0.00017,2]
[388902544,1759485062938,-210.114619,0.00016999,2]
[388902545,1759485062948,-156.75166994,0.00016999,2]
[388902546,1759485062958,-35724.47120076,0.00017,2]
[388902554,1759485065849,-329.10784,0.00017,2]
[388902555,1759485065861,-4301.01585,0.00017,2]
[388902556,1759485065888,-57961.89620654,0.00017,2]
[388902564,1759485069625,200.0,0.00015981,2]
[388902652,1759485186146,150.0,0.000165,2]
[388902668,1759485213904,1034.85,0.0001618,2]
[388902670,1759485227426,1500.0,0.00016058,2]
[388902671,1759485248624,383.0,0.00016456,2]
[388902672,1759485266311,150.0,0.00016103,2]
[388902719,1759485303342,250.0,0.00016494,2]
[388902744,1759485312783,150.0,0.000153,2]
[388902751,1759485313146,150.0,0.0001648,2]
[388902766,1759485315295,166.06,0.00016103,2]
[388902768,1759485346497,200.0,0.00016136,2]
[388904067,1759485531060,666.0,0.00016091,3]
[388904779,1759485621343,283.67,0.00016597,2]
[388904848,1759485630245,-2500.0,0.00016723,2]
[388904849,1759485630268,-383.0,0.00016765,2]
[388904850,1759485630289,-2500.0,0.00016774,2]
[388904851,1759485630310,-930.27385404,0.00016774,2]
[388904852,1759485630330,-209.43,0.000168,2]
[388904853,1759485630351,-370.2,0.00016802,2]
[388904855,1759485630372,-1000.0,0.00016822,2]
[388904856,1759485630392,-1029.46888,0.0001683,2]
[388904858,1759485630412,-1077.62726596,0.00016898,2]
[388904872,1759485632003,-122.37273404,0.00016898,2]
[388904874,1759485632030,-9877.62726596,0.00016899,2]
[388904895,1759485633452,-5621.01363404,0.00016899,2]
[388904897,1759485633478,-681.80099793,0.00016899,2]
[388904898,1759485633508,-437.88788387,0.00016899,2]
[388904899,1759485633529,-190.30414732,0.000169,2]
[388904901,1759485633550,-3068.99333684,0.000169,2]
[388904915,1759485634596,-6930.99666316,0.000169,2]
[388904916,1759485634621,-150.99,0.000169,2]
[388904918,1759485634652,-1160.85,0.000169,2]
[388904919,1759485634684,-1757.16333684,0.000169,2]
[388904929,1759485635959,-8242.82666316,0.000169,2]
[388904930,1759485635985,-150.99,0.000169,2]
[388904931,1759485636012,-1606.18333684,0.000169,2]
[388905055,1759485650519,-268.405104,0.00016813,2]
[388905056,1759485650538,-5163.594896,0.000169,2]
[388905296,1759485701681,-241.0,0.000169,2]
[388905319,1759485831635,150.0,0.000153,2]
[388905320,1759485831971,150.0,0.0001648,2]
[388905329,1759486166239,250.0,0.00016203,2]
[388905417,1759486243504,-487.29,0.00016732,2]
[388905419,1759486243514,-2000.0,0.00016816,2]
[388905421,1759486243523,-171.27373257,0.000169,2]
[388905423,1759486243532,-369.14553968,0.000169,2]
[388905425,1759486243541,-1354.0,0.0001691,2]
[388905427,1759486243550,-299.05,0.0001696,2]
[388905429,1759486243559,-1200.0,0.00016972,2]
[388905431,1759486243568,-500.0,0.00016973,2]
[388905433,1759486243577,-500.71684254,0.00016973,2]
[388905435,1759486243587,-500.0,0.00016973,2]
[388905437,1759486243597,-500.0,0.00016973,2]
[388905439,1759486243606,-529.59492403,0.00016973,2]
[388905441,1759486243616,-272.82744128,0.00016973,2]
[388905443,1759486243625,-151.0,0.0001699,2]
[388905445,1759486243635,-231.28369723,0.0001699,2]
[388905447,1759486243644,-151.0,0.0001699,2]
[388905449,1759486243653,-151.0,0.0001699,2]
[388905451,1759486243662,-7965.41053268,0.0001699,2]
[388905453,1759486243671,-264.00213122,0.0001699,2]
[388905455,1759486243680,-151.0,0.0001699,2]
[388905457,1759486243689,-322.6107,0.0001699,2]
[388905459,1759486243699,-500.0,0.0001699,2]
[388905461,1759486243710,-168.9571769,0.0001699,2]
[388905463,1759486243720,-1070.6366337,0.0001699,2]
[388905465,1759486243729,-407.20064976,0.0001699,2]
[388905470,1759486243775,-29565.93769664,0.0001699,2]
[388905472,1759486243784,-150.0,0.00016999,2]
[388905474,1759486243793,-616.306,0.00016999,2]
[388905476,1759486243802,-300.0,0.00016999,2]
[388905478,1759486243811,-300.0,0.00016999,2]
[388905480,1759486243821,-305.22180023,0.00016999,2]
[388905482,1759486243831,-320.95576768,0.00016999,2]
[388905484,1759486243841,-165.19260372,0.00016999,2]
[388905486,1759486243850,-301.23188161,0.00016999,2]
[388905488,1759486243859,-2000.0,0.00017,2]
[388905490,1759486243869,-446537.06681743,0.00017,2]
[388905492,1759486243878,-124670.21835318,0.00017,2]
[388905494,1759486243888,-4458.27040472,0.00017,2]
[388905496,1759486243897,-239116.59389041,0.00017,2]
[388905498,1759486243908,-162.0,0.00017,2]
[388905500,1759486243923,-122297.2475298,0.00017,2]
[388905502,1759486243932,-200.0,0.00017,2]
[388905504,1759486243941,-150.0,0.00017,2]
[388905506,1759486243951,-389.52619892,0.00017,2]
[388905508,1759486243961,-150.0,0.00017,2]
[388905511,1759486243970,-875.081217,0.00017,2]
[388905513,1759486243980,-1844.8555031,0.00017,2]
[388905515,1759486243989,-50936.2181231,0.00017,2]
[388905517,1759486243998,-151.0,0.00017,2]
[388905518,1759486244007,-200.0,0.00017,2]
[388905520,1759486244016,-164.898586,0.00017,2]
[388905522,1759486244025,-151.0,0.00017,2]
[388905524,1759486244035,-151.0,0.00017,2]
[388905526,1759486244044,-150.0,0.00017,2]
[388905528,1759486244053,-151.0,0.00017,2]
[388905530,1759486244063,-150.0,0.00017,2]
[388905532,1759486244072,-151.88612152,0.00017,2]
[388905535,1759486244086,-500.0,0.00017,2]
[388905537,1759486244096,-500.0,0.00017,2]
[388905539,1759486244106,-150.0,0.00017,2]
[388905541,1759486244115,-151.0,0.00017,2]
[388905543,1759486244126,-151.0,0.00017,2]
[388905545,1759486244136,-151.0,0.00017,2]
[388905547,1759486244145,-151.0,0.00017,2]
[388905549,1759486244157,-151.0,0.00017,2]
[388905551,1759486244166,-151.0,0.00017,2]
[388905553,1759486244175,-151.0,0.00017,2]
[388905555,1759486244184,-151.0,0.00017,2]
[388905557,1759486244193,-151.490539,0.00017,2]
[388905559,1759486244204,-151.0,0.00017,2]
[388905561,1759486244215,-151.0,0.00017,2]
[388905563,1759486244226,-222.021765,0.00017,2]
[388905565,1759486244236,-151.0,0.00017,2]
[388905567,1759486244246,-178.598512,0.00017,2]
[388905570,1759486244256,-151.0,0.00017,2]
[388905572,1759486244265,-152.019885,0.00017,2]
[388905574,1759486244275,-152.700273,0.00017,2]
[388905575,1759486244284,-203.14914773,0.00017,2]
[388905578,1759486244293,-178.43813652,0.00017,2]
[388905580,1759486244302,-151.642282,0.00017,2]
[388905582,1759486244312,-151.0,0.00017,2]
[388905584,1759486244321,-151.0,0.00017,2]
[388905586,1759486244330,-154.100361,0.00017,2]
[388905587,1759486244342,-151.0,0.00017,2]
[388905590,1759486244356,-151.0,0.00017,2]
[388905592,1759486244366,-151.0,0.00017,2]
[388905594,1759486244376,-200.83413463,0.00017,2]
[388905596,1759486244385,-151.0,0.00017,2]
[388905598,1759486244394,-151.0,0.00017,2]
[388905600,1759486244403,-151.0,0.00017,2]
[388905602,1759486244413,-151.0,0.00017,2]
[388905604,1759486244422,-151.0,0.00017,2]
[388905606,1759486244431,-151.0,0.00017,2]
[388905608,1759486244441,-151.0,0.00017,2]
[388905610,1759486244451,-151.0,0.00017,2]
[388905611,1759486244460,-151.0,0.00017,2]
[388905613,1759486244470,-156.230422,0.00017,2]
[388905616,1759486244479,-151.0,0.00017,2]
[388905618,1759486244488,-151.0,0.00017,2]
[388905620,1759486244499,-151.0,0.00017,2]
[388905622,1759486244507,-151.0,0.00017,2]
[388905624,1759486244517,-221.843157,0.00017,2]
[388905625,1759486244529,-151.0,0.00017,2]
[388905628,1759486244545,-151.0,0.00017,2]
[388905630,1759486244555,-1943.09074906,0.00017,2]
[388905632,1759486244565,-200.0,0.00017,2]
[388905634,1759486244574,-151.0,0.00017,2]
[388905636,1759486244583,-151.0,0.00017,2]
[388905638,1759486244592,-152.839279,0.00017,2]
[388905640,1759486244602,-151.0,0.00017,2]
[388905642,1759486244611,-151.0,0.00017,2]
[388905644,1759486244620,-151.0,0.00017,2]
[388905646,1759486244629,-153.19586,0.00017,2]
[388905648,1759486244640,-151.0,0.00017,2]
[388905650,1759486244649,-151.0,0.00017,2]
[388905652,1759486244659,-151.0,0.00017,2]
[388905654,1759486244668,-227.224553,0.00017,2]
[388905656,1759486244676,-151.0,0.00017,2]
[388905658,1759486244686,-151.0,0.00017,2]
[388905660,1759486244695,-265.420591,0.00017,2]
[388905662,1759486244704,-151.0,0.00017,2]
[388905664,1759486244713,-151.0,0.00017,2]
[388905666,1759486244722,-151.0,0.00017,2]
[388905668,1759486244731,-151.0,0.00017,2]
[388905670,1759486244740,-151.0,0.00017,2]
[388905672,1759486244749,-151.0,0.00017,2]
[388905674,1759486244760,-151.0,0.00017,2]
[388905676,1759486244770,-151.0,0.00017,2]
[388905678,1759486244779,-151.0,0.00017,2]
[388905680,1759486244788,-151.0,0.00017,2]
[388905682,1759486244798,-151.0,0.00017,2]
[388905684,1759486244806,-151.0,0.00017,2]
[388905686,1759486244815,-151.0,0.00017,2]
[388905688,1759486244824,-151.0,0.00017,2]